Cogmind - Beta 13 @@@ ROGUE MODE // 2024.05.02 @ 00:33:57 Player: Beardedfinch Result: Destroyed by S-10 Pest with Light Assault Rifle Performance ------------- Evolutions (1) 500 Regions Visited (2) 400 Robots Destroyed (19) 95 Value Destroyed (330) 330 Prototype IDs (0) 0 Alien Tech Used (0) 0 Bonus (0) 0 TOTAL SCORE: 1325 Bonus ------- None Cogmind --------- Core Integrity 0/400 Matter 150/300 Energy 250/250 System Corruption 0% Temperature Cool (6) Movement Core (200) Ox3 Location -9/Materials Parts ------- > --- POWER (2) -------- Ion Engine > --- PROPULSION (2) --- (None) > --- UTILITY (3) ------ Core Shielding Core Shielding Core Shielding > --- WEAPON (2) ------- Maul > --- INVENTORY (5) ---- Small Storage Unit Sensor Array Peak State ------------ > --- POWER ------------ Ion Engine Ion Engine > --- PROPULSION ------- Light Treads Light Treads > --- UTILITY ---------- Small Storage Unit Sensor Array Improved Terrain Scanner > --- WEAPON ----------- Assault Rifle Improved Light Cannon > --- INVENTORY -------- Core Shielding Core Shielding Core Shielding [Rating: 12] Favorites ----------- Power Light Ion Engine Engine Light Ion Engine Propulsion Light Treads Treads Light Treads Utility Small Storage Unit Device Improved Terrain Scanner Storage Small Storage Unit Protection Core Shielding Weapon Assault Rifle Energy Gun EM Pulse Gun Ballistic Gun Assault Rifle Ballistic Cannon Improved Light Cannon Impact Weapon Maul Build | -11 -10 -9 ------- Run | Yrd Mat Mat Slots Evolved 2 | . . 2 Power 1 | . . 1 Propulsion . | . . . Utility 1 | . . 1 Weapon . | . . . Parts Attached 16 | 7 2 7 Power 3 | 1 . 2 Engine 3 | 1 . 2 Core . | . . . Reactor . | . . . Propulsion 2 | 2 . . Treads 2 | 2 . . Leg . | . . . Wheel . | . . . Hover . | . . . Flight . | . . . Utility 6 | 2 . 4 Device 2 | 1 . 1 Storage 1 | 1 . . Processor . | . . . Hackware . | . . . Protection 3 | . . 3 Artifact . | . . . Weapon 5 | 2 2 1 Energy Gun 1 | 1 . . Energy Cannon . | . . . Ballistic Gun 2 | 1 1 . Ballistic Cannon 1 | . 1 . Launcher . | . . . Special Weapon . | . . . Impact Weapon 1 | . . 1 Slashing Weapon . | . . . Piercing Weapon . | . . . Special Melee Weapon . | . . . Unidentified Prototypes . | . . . Parts Lost 8 | . 2 6 Power 2 | . 1 1 Propulsion 2 | . . 2 Utility 1 | . . 1 Weapon 3 | . 1 2 Highest Loss Streak 3 | . 1 3 To Critical Strikes . | . . . Average Slot Usage (%) 86 | . 94 63 Engine 13 | . 12 14 Treads 22 | . 28 7 Device 14 | . 14 17 Storage 13 | . 14 11 Energy Gun 6 | . 8 . Ballistic Gun 7 | . 8 3 Ballistic Cannon 7 | . 8 7 Naked Turns . | . . . Heaviest Build 23 | 13 15 23 Greatest Support 40 | 40 40 40 Greatest Overweight (x) 6 | . . 6 Average Overweight (x) . | . . 1 Largest Inventory Capacity 8 | 8 8 8 Average Capacity 7 | 7 8 7 Most Carried 7 | 2 7 4 Average Carried 3 | . 4 2 Final Capacity 8 | 8 8 5 Final Carried 4 | . 4 2 Class Distribution -------------------- 100% | Mutant Dominant Class ---------------- Mutant | -10/Materials Mutant | -9/Materials Resources | -11 -10 -9 ----------- Run | Yrd Mat Mat Matter Collected 379 | 291 88 . Remotely . | . . . Salvage Created 454 | 137 204 113 Parts 33 | 6 17 10 Haulers Intercepted . | . . . Recyclers Shooed . | . . . Parts Field Recycled . | . . . Retrieved Matter . | . . . Parts Self-Destructed . | . . . Prevented . | . . . Kills | -11 -10 -9 ------- Run | Yrd Mat Mat Combat Hostiles Destroyed 9 | . 7 2 Guns 3 | . 3 . Cannons 5 | . 3 2 AOE 1 | . 1 . Classes Destroyed 7 | 2 5 . Worker 3 | . 1 2 Builder 2 | . 2 . Tunneler 3 | 2 . 1 Recycler 1 | 1 . . Watcher 1 | . 1 . Swarmer 3 | . 3 . Grunt 6 | . 4 2 Best Kill Streak 5 | 1 5 5 Combat Bots Only 3 | . 3 2 Max Kills in Single Turn 2 | 1 2 2 Gunslinging . | . . . Exploded 1 | . 1 . Melee . | . . . Uniques/NPCs Destroyed . | . . . Combat | -11 -10 -9 -------- Run | Yrd Mat Mat Hostile Shots Fired 186 | . 65 121 Missed 62 | . 19 43 Damage Taken 1367 | . 476 891 Core 490 | . 83 407 Absorbed by Shields . | . . . Redirected to Shielding 13 | . . 13 Core Remaining (%) 83 | 100 66 . Volleys Fired 52 | 7 31 14 Largest 2 | 2 2 2 Hottest 79 | 60 79 59 Shots Fired 83 | 14 52 17 Gun 51 | 14 34 3 Cannon 32 | . 18 14 Launcher . | . . . Special . | . . . Kinetic 59 | 7 35 17 Thermal . | . . . Explosive . | . . . Electromagnetic 24 | 7 17 . Robot Hit Streak 13 | 3 13 2 Robot Miss Streak 4 | 2 4 3 Penetration Max . | . . . Secondary Targets 1 | . 1 . Max Gunslinging Chain 1 | . 1 . Shots Hit Robots 43 | 8 31 4 Core Hits 22 | 4 13 5 Critical Kills . | . . . Critical Parts Destroyed . | . . . Critical Strikes 3 | . 3 . Blast 2 | . 2 . Corrupt 1 | . 1 . Melee Attacks . | . . . Impact . | . . . Slashing . | . . . Piercing . | . . . Sneak Attacks . | . . . Combat Hostiles . | . . . Follow-up Attacks . | . . . Damage Inflicted 1169 | 120 729 320 Guns 346 | 120 226 . Cannons 419 | . 288 131 Explosions 404 | . 215 189 Melee . | . . . Ramming . | . . . Kinetic 575 | 64 380 131 Thermal 215 | . 215 . Explosive 189 | . . 189 Electromagnetic 190 | 56 134 . Impact . | . . . Slashing . | . . . Piercing . | . . . Highest Corruption . | . . . Average Corruption . | . . . Corruption Purged . | . . . Corruption Blocked . | . . . Overload Shots . | . . . Overflow Damage 53 | . . 53 Projectiles 1 | . . 1 Explosions 52 | . . 52 Melee . | . . . Knockbacks 3 | . 3 . Impact . | . . . Kinetic 3 | . 3 . Secondary . | . . . Self-Inflicted Damage 87 | . . 87 Shots 1 | . . 1 Rammed . | . . . Targets Rammed . | . . . Kicked . | . . . Crushed . | . . . Highest Temperature 164 | . 164 80 Average Temperature 65 | . 85 39 Received Heat Transfer 570 | . 216 354 Siege Activations . | . . . Robots Corrupted . | . . . Combat Hostiles . | . . . Parts Fried . | . . . Impact Corruptions . | . . . Robots Melted . | . . . Combat Hostiles . | . . . Parts Melted . | . . . Heat Transferred 250 | . 250 . Parts Sabotaged . | . . . Parts Stolen . | . . . Parts Stripped . | . . . Power Chain Reactions 3 | . 3 . Alert | -11 -10 -9 ------- Run | Yrd Mat Mat Peak Influence 200 | 15 200 107 Initial 9 | . 9 8 Average 67 | 7 89 54 Maximum Alert Level 1 | . 1 . Low Security (%) 91 | 100 86 100 Level 1 8 | . 13 . Level 2 . | . . . Level 3 . | . . . Level 4 . | . . . Level 5 . | . . . High Security . | . . . Max Security . | . . . Squads Dispatched 4 | . 3 1 Investigation 2 | . 1 1 Extermination . | . . . Reinforcement 2 | . 2 . Assault . | . . . Garrison . | . . . Intercept . | . . . Searches Triggered . | . . . Construction Impeded . | . . . Haulers Reinforced . | . . . Active Scanning Responses . | . . . Cargo Convoy Interrupts . | . . . Stealth | -11 -10 -9 --------- Run | Yrd Mat Mat Distress Signals 2 | . 1 1 Communications Jammed . | . . . Distress Signals . | . . . Times Spotted 18 | . 13 5 Peak Tracking Total 4 | . 3 4 Tactical Retreats . | . . . Traps | -11 -10 -9 ------- Run | Yrd Mat Mat Traps Triggered . | . . . Indirectly . | . . . Trap Hack Attempts . | . . . Triggered . | . . . Disarmed . | . . . Reprogrammed . | . . . Reused . | . . . Traps Extracted . | . . . Installed . | . . . Triggered . | . . . Machines | -11 -10 -9 ---------- Run | Yrd Mat Mat Machines Disabled 4 | . . 4 Max in Single Turn 1 | . . 1 Machines Repaired . | . . . Machines Dismantled . | . . . Machines Sabotaged . | . . . Overloaded Fab Kills . | . . . Hacking | -11 -10 -9 --------- Run | Yrd Mat Mat Machines Accessed 4 | . 3 1 Terminals 3 | . 2 1 Fabricators . | . . . Repair Stations . | . . . Recycling Units 1 | . 1 . Scanalyzers . | . . . Garrison Access . | . . . Total Hacks 17 | . 13 4 Successful 10 | . 9 1 Failed 7 | . 4 3 Catastrophic . | . . . Database Lockouts . | . . . Manual . | . . . Terminals 14 | . 10 4 Fabricators . | . . . Repair Stations . | . . . Recycling Units 3 | . 3 . Scanalyzers . | . . . Garrison Access . | . . . Terminal Hacks 7 | . 6 1 Record 4 | . 3 1 Robot Analysis 1 | . 1 . Recall Reinforcements 1 | . 1 . Zone Layout 1 | . 1 . Fabricator Hacks . | . . . Repair Station Hacks . | . . . Recycling Unit Hacks 3 | . 3 . Recycle Component 1 | . 1 . Process 1 | . 1 . Report Inventory 1 | . 1 . Scanalyzer . | . . . Garrison Access Hacks . | . . . Unauthorized Hacks . | . . . Terminals . | . . . Fabricators . | . . . Repair Stations . | . . . Recycling Units . | . . . Scanalyzers . | . . . Garrison Access . | . . . Data Cores Recovered . | . . . Used . | . . . Hacking Detections 4 | . 3 1 Full Trace Events 4 | . 3 1 Feedback Events . | . . . Feedback Blocked . | . . . Robot Schematics Acquired . | . . . Robots Built . | . . . Authchips . | . . . Time . | . . . Total Robot Build Rating . | . . . Part Schematics Acquired . | . . . Parts Built . | . . . Authchips . | . . . Time . | . . . Total Part Build Rating . | . . . Parts Repaired . | . . . Time . | . . . Parts Recycled 1 | . 1 . Recycled Matter 54 | . 54 . Retrieved Matter . | . . . Retrieved Components . | . . . Parts Scanalyzed . | . . . Part Schematics Acquired . | . . . Parts Damaged . | . . . Bothacking | -11 -10 -9 ------------ Run | Yrd Mat Mat Used RIF Installer . | . . . Robots Hacked . | . . . Non-combat . | . . . Combat . | . . . Robot Hacks Applied . | . . . Relay Couplers Released . | . . . Fabnet Peak Effective % . | . . . Robots Rewired . | . . . Allies Hacked . | . . . Hacks Repelled . | . . . Allies | -11 -10 -9 -------- Run | Yrd Mat Mat Total Allies . | . . . Largest Group . | . . . Highest-Rated Group . | . . . Highest-Rated Ally . | . . . Total Orders . | . . . Ally Attacks . | . . . Total Damage . | . . . Kills . | . . . Allies Corrupted . | . . . Allies Melted . | . . . Intel | -11 -10 -9 ------- Run | Yrd Mat Mat Robot Analysis Total 1 | . 1 . Derelict Logs Recovered . | . . . Drone Launches . | . . . Drone Recoveries . | . . . Exploration | -11 -10 -9 ------------- Run | Yrd Mat Mat Turns Passed 768 | 136 465 167 Spaces Moved 348 | 66 220 62 Core 35 | 3 . 32 Treads 313 | 63 220 30 Legs . | . . . Wheels . | . . . Hover . | . . . Flight . | . . . Fastest Speed 50 | 50 160 160 Average Speed 166 | 155 160 201 Slowest Speed 350 | 160 160 350 Overloaded Moves . | . . . Propulsion Burnouts . | . . . Robots Hopped . | . . . Cave-ins Triggered . | . . . Exploration Rate (%) 21 | 5 40 18 Regions Visited 2 Branch Regions . Pre-discovered Areas . | . . . Known Exits Taken . | . . . Unknown Exits Taken 2 | 1 1 . Scrap Searched . | . . . Spaces Dug . | . . . Terrain Destroyed 29 | . 16 13 Melee . | . . . Projectile 1 | . . 1 AOE 28 | . 16 12 Terrain Rammed . | . . . Walls Destroyed . | . . . Machines Disabled . | . . . Actions | -11 -10 -9 --------- Run | Yrd Mat Mat Total 453 | 86 281 86 Wait 21 | . 21 . Move 346 | 65 219 62 Hop . | . . . Pick Up 17 | 7 7 3 Fast Attach . | . . . Attach 13 | 7 1 5 Detach . | . . . Swap 3 | . 1 2 Drop 1 | . 1 . Fire 52 | 7 31 14 Melee . | . . . Ram . | . . . Kick . | . . . Crush . | . . . Escape Stasis . | . . . Rewire . | . . . Trap . | . . . Miscellaneous . | . . . Route ------- -11/Scrapyard -10/Materials (discovered 2 exits: *Mat / [*Min]) -9/Materials (discovered 1 exit: [*Mat]) History --------- Turn | Location | Event 17 | -11/Scrapyard | Discovered new exit (range 14) 137 | -11/Scrapyard | Entered Materials 309 | -10/Materials | Build established: Mutant 470 | -10/Materials | Discovered new exit (range 15) 526 | -10/Materials | Discovered new exit (range 10) 602 | -10/Materials | Entered another Materials area 602 | -9/Materials | Evolved 2 slots: Power x1, Utility x1 697 | -9/Materials | Lost 3 parts (2n1w) 719 | -9/Materials | Core integrity fell below 50% 744 | -9/Materials | Lost 3 parts (1p1u1w) 758 | -9/Materials | Core integrity fell below 20% 763 | -9/Materials | Discovered new exit (range 16) 769 | -9/Materials | Destroyed by S-10 Pest with Light Assault Rifle Last Messages --------------- 00710_ K-01 Serf collects debris. 00710_ Ion Engine destroyed. 00710_ U-05 Engineer lays Concrete. 00713_ Imp. Light Cannon destroyed. 00713_ U-05 Engineer lays Concrete. 00714_ K-01 Serf collects debris. 00714_ U-05 Engineer lays Concrete. 00720_ U-05 Engineer builds a Wall. 00720_ U-05 Engineer lays Concrete. 00720_ K-01 Serf collects debris. 00720_ U-05 Engineer lays Concrete. 00724_ U-05 Engineer builds a Wall. 00724_ U-05 Engineer lays Concrete. 00725_ U-05 Engineer builds a Wall. 00739_ K-01 Serf cleans the Matter Filter. 00757_ Acquired Maul. Note that some effects don't stack, e.g. attaching both Core Shielding and Core Shielding does not combine the two effects (all such effects are marked ). 00763_ EXIT=FOUND 00765_ K-01 Serf cleans the Hadron Collector. Map ----- +----------------------------------------------------+ | ##??# T ^ #???????????????????? | | ! # !% ^^ #???????????????????? | | # = % #???????????????????? | | """ # ! %[ ??????????????????? | | """ # %% ??????????????????? | | """ # % ??????????????????? | | %"%"" ""???????????????????? | | ! """"" """"?????????????????? | | """"" """"?????????????????? | | +### % """"" """"" ???????????????? | | """"" """"" #?????????????? | | = """"" """"" #?????????????? | | % """"" a""""" #?????????????? | | ## ### # ### #?????????????? | | ## #?# #### #?????????????? | | ?# #?# #??# """"" """"" #?????????????? | | ?# ### #?## """"" """""????????????????? | | ?# #?# """ #??# """"" """""????????????????? | | ?# #?#""""" #??# """"" """""????????????????? | | ?# #????""" ???# """"" """"" ?#?????????????? | | ?# #?#???"" ???# """"" """"" #?????????????? | | ?# #?????? ???# """"" """"" #?????????????? | | ?# #??????? ????# g #?????????????? | | ?# #?????????????# sg #?????????????? | | ?? #?????????????# """"" #?????????????? | | ?? ??????????????# @ """"" #?????????????? | | ?? ??????????????+ """"" #?????????????? | | ??????????????????# """"" ???????????????? | | ??????????????????# ! """""????????????????? | | ??????????????????# // """""????????????????? | | ??????????????????# // """"?????????????????? | | ??????????????????# ????????????????? | | ??????????????????# ???????????????? | | ??????????????????######## ??????????????? | | ?????????????????????????? ?????????????? | | ?????????????????????????? """" ?????????????? | | ?????????????????????????? """" #????????????? | | ?????????????????????????? """??? ????????????? | | ?????????????????????????? ???????????????????? | | ?????????????????????????? ??????????????????? | | ?????????????????????????? ##??????????????????? | | ??????????????????????????? #???????????????????? | | ???????????????????????????< ????????????????????? | | ?????????????????????????????????????????????????? | | ?????????????????????????????????????????????????? | | ?????????????????????????????????????????????????? | | ?????????????????????????????????????????????????? | | ?????????????????????????????????????????????????? | | ?????????????????????????????????????????????????? | | ?????????????????????????????????????????????????? | +----------------------------------------------------+ Best States ------------- Heat Dissipation 28 Energy Generation 15 Energy Capacity 400 Matter Stores 300 Matter Capacity 300 Sight Range 16 Robot Scan Range 14 Terrain Scan Range 16 Terrain Scan Density 10 Core Shielding 20 Evasion (%) 40 Recoil Reduction 2 Item Schematics ----------------- None Robot Schematics ------------------ None Fabricated ------------ Nothing Alien Tech Used ----------------- None Achievements -------------- GoHome() Challenges ------------ None Game ------ Seed PowerMyomerCompactor Manual? 0 Play Time 00:31:38 Cumulative 4.3 hours Start 2024.05.01 @ 23:55:06 End 2024.05.02 @ 00:33:57 Sessions 3 Manual Loads 0 Difficulty Rogue Special Mode None Game No. 9 Rogue 9 Adventurer 0 Explorer 0 Win Type - Total 0 Types 0/0/0/0/0/0/0/0/0 Lore% 2 Gallery% 8 Achievement% 3 Wizard Run 0 Options --------- Layout 0 ASCII 0 Keyboard 0 Movement Mouse Keybinds 0 Fullscreen 1 Font 24/Smallcaps Map View 113x50 Zoom Use 0% Tactical HUD 1 Map Filters NONE Filters NONE Steam 1 RUN: 05d16d9b-f3ee-45d0-a4b1-7d787fcb5b4b